Workbook

Sheet Ευρεση τρόπων
G3: Στοιχεία συστήματος | M3: Προσαρμογή σε αρχικές συνθήκες-διακροτήματα
H4: Προτεινονται
E5: Μάζα x | F5: mx | G5: 5 | H5: 5 | K5: Αρχική μετατόπιση -x- | L5: x0 | M5: 1 | N5: =IF(ω1=0,G23/2,M5) -> 1
E6: Μάζα y | F6: my | G6: 5 | H6: 5 | K6: Αρχική μετατόπιση -y- | L6: y0 | M6: 0 | N6: =IF(ω1=0,G24/2,M6) -> 0
E7: Πλευρικό ελατήριο x | F7: sx | G7: 1 | H7: 1
E8: Πλευρικό ελατήριο y | F8: sy | G8: 1 | H8: 1 | K8: Πλάτος -x- 1ου τρόπου | L8: Α1 | M8: =κ1*M9 -> 0.5
E9: Ελατήριο σύζευξης | F9: s | G9: 0.2 | H9: 0.2 | K9: Πλάτος -y- 1ου τρόπου | L9: Β1 | M9: =(Χ0-κ2*Υ0)/(κ1-κ2) -> 0.5
G11: ΛΥΣΗ- εύρεση συχνοτήτων και πλατών
G12: Συντελεστές τριωνύμου | K12: Πλάτος -x- 2ου τρόπου | L12: Α2 | M12: =κ2*M13 -> 0.5
F13: a | G13: =mx*my -> 25 | K13: Πλάτος -y- 2ου τρόπου | L13: Β2 | M13: =Υ0-M9 -> -0.5
F14: b | G14: =mx*sy+mx*s+my*sx+my*s -> 12
F15: c | G15: =sx*sy+sx*s+sy*s -> 1.4
E17: Συχνότητα 1ου τρόπου | F17: ω1 | G17: =SQRT(B/(2*A)-SQRT(B*B-4*A*Γ)/(2*A)) -> 0.4472135955
E18: Συχνότητα 2ου τρόπου | F18: ω2 | G18: =SQRT(B/(2*A)+SQRT(B*B-4*A*Γ)/(2*A)) -> 0.5291502622
E20: Πλάτος -x- 1ου τρόπου | F20: A1 | G20: =κ1*G21 -> 1 | H20: κ1 | I20: =1+sy/s-ω1*ω1*my/s -> 1
E21: Πλάτος -y- 1ου τρόπου | F21: B1 | G21: 1
E23: Πλάτος -x- 2ου τρόπου | F23: A2 | G23: =κ2*G24 -> 1 | H23: κ2 | I23: =1+sy/s-ω2*ω2*my/s -> -1
E24: Πλάτος -y- 2ου τρόπου | F24: B2 | G24: -1

Sheet Κυματομορφές
G4: t | H4: Μετατόπιση x | I4: Μετατόπιση y | J4: Ταχύτητα Vx | K4: Ταχύτητα Vy
F5: 0 | G5: =8*3.1426/(ω2-ω1)*F5/700 -> 0 | H5: =Α1*COS(ω1*G5)+Α2*COS(ω2*G5) -> 1 | I5: =Β1*COS(ω1*G5)+Β2*COS(ω2*G5) -> 0 | J5: =ω1*Α1*SIN(ω1*G5)+ω2*Α2*SIN(ω2*G5) -> 0 | K5: =ω1*Β1*SIN(ω1*G5)+ω2*Β2*SIN(ω2*G5) -> 0
F6: 1 | G6: 0.4383315799 | H6: 0.9770347624 | I6: 0.003813227567 | J6: 0.1043706389 | K6: -0.01726470278
F7: 2 | G7: 0.8766631598 | H7: 0.9092229355 | I7: 0.01490262356 | J7: 0.2038158162 | K7: -0.03294045157
F8: 3 | G8: 1.31499474 | H8: 0.7997637212 | I8: 0.0322416829 | J8: 0.2936484174 | K8: -0.04554883759
F9: 4 | G9: 1.75332632 | H9: 0.6538168691 | I9: 0.05419922856 | J9: 0.3696462311 | K9: -0.05382564738
F10: 5 | G10: 2.191657899 | H10: 0.4782532455 | I10: 0.07865368293 | J10: 0.4282555189 | K10: -0.05681112921
F11: 6 | G11: 2.629989479 | H11: 0.2813230718 | I11: 0.1031429132 | J11: 0.4667615597 | K11: -0.05392117738
F12: 7 | G12: 3.068321059 | H12: 0.07225821068 | I12: 0.1250402382 | J12: 0.4834177929 | K12: -0.04499486417
F13: 8 | G13: 3.506652639 | H13: -0.1391718907 | I13: 0.1417454797 | J13: 0.4775272658 | K13: -0.03031515136
F14: 9 | G14: 3.944984219 | H14: -0.3431287454 | I14: 0.1508788958 | J14: 0.4494724874 | K14: -0.01060120897
F15: 10 | G15: 4.383315799 | H15: -0.5301748627 | I15: 0.1504655165 | J15: 0.4006923745 | K15: 0.01302753374
F16: 11 | G16: 4.821647379 | H16: -0.6917222782 | I16: 0.1390978298 | J16: 0.3336076243 | K16: 0.03911377806
F17: 12 | G17: 5.259978959 | H17: -0.8204377374 | I17: 0.1160659247 | J17: 0.251498417 | K17: 0.06594775154
F18: 13 | G18: 5.698310539 | H18: -0.91058493 | I18: 0.08144602497 | J18: 0.1583407154 | K18: 0.09167075485
F19: 14 | G19: 6.136642118 | H19: -0.9582873796 | I19: 0.03614073551 | J19: 0.05860947238 | K19: 0.1143908552
F20: 15 | G20: 6.574973698 | H20: -0.9616996089 | I20: -0.01813285082 | J20: -0.04294133479 | K20: 0.1323039117
F21: 16 | G21: 7.013305278 | H21: -0.9210788077 | I21: -0.07890794562 | J21: -0.1415108162 | K21: 0.1438126966
F22: 17 | G22: 7.451636858 | H22: -0.838754207 | I22: -0.1430833272 | J22: -0.2324838575 | K22: 0.1476368701
F23: 18 | G23: 7.889968438 | H23: -0.7189964458 | I23: -0.2070835449 | J23: -0.3116528588 | K23: 0.1429069842
F24: 19 | G24: 8.328300018 | H24: -0.5677941495 | I24: -0.2670557111 | J24: -0.3754176226 | K24: 0.1292365062
F25: 20 | G25: 8.766631598 | H25: -0.3925494865 | I25: -0.3190921382 | J25: -0.4209536601 | K25: 0.1067670284
F26: 21 | G26: 9.204963178 | H26: -0.2017083811 | I26: -0.3594662729 | J26: -0.4463408421 | K26: 0.07618330598
F27: 22 | G27: 9.643294758 | H27: -0.004344167212 | I27: -0.3848682708 | J27: -0.4506463686 | K27: 0.03869644975
F28: 23 | G28: 10.08162634 | H28: 0.1902843957 | I28: -0.3926262167 | J28: -0.4339583765 | K28: -0.00400458711
F29: 24 | G29: 10.51995792 | H29: 0.3731787597 | I29: -0.3808994586 | J29: -0.3973690108 | K29: -0.04983125547
F30: 25 | G30: 10.9582895 | H30: 0.5360279333 | I30: -0.3488317763 | J30: -0.3429083335 | K30: -0.09639966752
F31: 26 | G31: 11.39662108 | H31: 0.6715967394 | I31: -0.2966540918 | J31: -0.2734329012 | K31: -0.1411555721
F32: 27 | G32: 11.83495266 | H32: 0.774056369 | I32: -0.2257290415 | J32: -0.1924750826 | K32: -0.1815134579
F33: 28 | G33: 12.27328424 | H33: 0.8392417095 | I33: -0.1385328429 | J33: -0.1040610961 | K33: -0.2150022469
F34: 29 | G34: 12.71161582 | H34: 0.8648237649 | I34: -0.03857332578 | J34: -0.01250723911 | K34: -0.2394094979
F35: 30 | G35: 13.1499474 | H35: 0.8503898762 | I35: 0.06975342217 | J35: 0.07779523556 | K35: -0.2529159427
F36: 31 | G36: 13.58827898 | H36: 0.7974291478 | I36: 0.1813618225 | J36: 0.162595686 | K36: -0.2542125363
F37: 32 | G37: 14.02661056 | H37: 0.7092252676 | I37: 0.2907217459 | J37: 0.2379892988 | K37: -0.2425929986
F38: 33 | G38: 14.46494214 | H38: 0.5906635102 | I38: 0.3921375559 | J38: 0.3006018255 | K38: -0.2180160345
F39: 34 | G39: 14.90327372 | H39: 0.4479629167 | I39: 0.4800469705 | J39: 0.347744878 | K39: -0.1811329641
F40: 35 | G40: 15.3416053 | H40: 0.2883482302 | I40: 0.5493239688 | J40: 0.3775344405 | K40: -0.1332783098
F41: 36 | G41: 15.77993688 | H41: 0.1196789671 | I41: 0.595569331 | J41: 0.3889672258 | K41: -0.07642286994
F42: 37 | G42: 16.21826846 | H42: -0.04994512498 | I42: 0.6153726371 | J42: 0.3819517261 | K42: -0.01309085027
F43: 38 | G43: 16.65660004 | H43: -0.212582102 | I43: 0.6065306814 | J43: 0.3572931653 | K43: 0.05375537608
F44: 39 | G44: 17.09493162 | H44: -0.360829403 | I44: 0.5682092355 | J44: 0.3166339226 | K44: 0.1208574728
F45: 40 | G45: 17.5332632 | H45: -0.4881702159 | I45: 0.5010378201 | J45: 0.2623532475 | K45: 0.1848233227
F46: 41 | G46: 17.97159478 | H46: -0.5892679963 | I46: 0.4071304914 | J46: 0.1974321099 | K46: 0.2423009749
F47: 42 | G47: 18.40992636 | H47: -0.6601954553 | I47: 0.2900294398 | J47: 0.1252907192 | K47: 0.2901553353
F48: 43 | G48: 18.84825794 | H48: -0.6985879268 | I48: 0.1545722473 | J48: 0.04960752289 | K48: 0.3256382473
F49: 44 | G49: 19.28658952 | H49: -0.7037150847 | I49: 0.006687728492 | J49: -0.02587070505 | K49: 0.3465427695
F50: 45 | G50: 19.7249211 | H50: -0.6764692707 | I50: -0.1468708124 | J50: -0.09751778632 | K50: 0.3513331159
F51: 46 | G51: 20.16325268 | H51: -0.6192730053 | I51: -0.2988425696 | J51: -0.1620064031 | K51: 0.3392428503
F52: 47 | G52: 20.60158425 | H52: -0.5359123461 | I52: -0.4418112034 | J52: -0.2164667684 | K52: 0.3103354649
F53: 48 | G53: 21.03991583 | H53: -0.4313064315 | I53: -0.5685743501 | J53: -0.2586179527 | K53: 0.26552335
F54: 49 | G54: 21.47824741 | H54: -0.3112266143 | I54: -0.672511946 | J54: -0.2868656897 | K54: 0.2065432832
F55: 50 | G55: 21.91657899 | H55: -0.1819808931 | I55: -0.7479343045 | J55: -0.3003623561 | K55: 0.1358888171
F56: 51 | G56: 22.35491057 | H56: -0.05008079039 | I56: -0.7903915542 | J56: -0.2990268869 | K56: 0.05670221292
F57: 52 | G57: 22.79324215 | H57: 0.07809166108 | I57: -0.7969276831 | J57: -0.2835245338 | K57: -0.02736926593
F58: 53 | G58: 23.23157373 | H58: 0.1965995922 | I58: -0.7662649824 | J58: -0.2552084946 | K58: -0.1123459485
F59: 54 | G59: 23.66990531 | H59: 0.3002337252 | I59: -0.698908009 | J59: -0.2160274093 | K59: -0.1941088645
F60: 55 | G60: 24.10823689 | H60: 0.3847477899 | I60: -0.5971601396 | J60: -0.1684044451 | K60: -0.2686037914
F61: 56 | G61: 24.54656847 | H61: 0.4470359909 | I61: -0.4650501596 | J61: -0.1150950794 | K61: -0.3320459475
F62: 57 | G62: 24.98490005 | H62: 0.4852449322 | I62: -0.3081709048 | J62: -0.0590316756 | K62: -0.3811148429
F63: 58 | G63: 25.42323163 | H63: 0.4988160916 | I63: -0.1334365153 | J63: -0.003163474115 | K63: -0.413129155
F64: 59 | G64: 25.86156321 | H64: 0.4884587434 | I64: 0.05123087533 | J64: 0.04969931627 | K64: -0.4261923748
F65: 60 | G65: 26.29989479 | H65: 0.456056963 | I65: 0.2372704162 | J65: 0.09702905642 | K65: -0.4193013467
F66: 61 | G66: 26.73822637 | H66: 0.4045178018 | I66: 0.4158901121 | J66: 0.136704423 | K66: -0.3924116207
F67: 62 | G67: 27.17655795 | H67: 0.337570713 | I67: 0.5784928144 | J67: 0.1671081809 | K67: -0.3464556725
F68: 63 | G68: 27.61488953 | H68: 0.2595306905 | I68: 0.7170995348 | J68: 0.1871943519 | K68: -0.2833124076
F69: 64 | G69: =8*3.1426/(ω2-ω1)*F69/700 -> 28.05322111 | H69: =Α1*COS(ω1*G69)+Α2*COS(ω2*G69) -> 0.1750392275 | I69: =Β1*COS(ω1*G69)+Β2*COS(ω2*G69) -> 0.824748832 | J69: =ω1*Α1*SIN(ω1*G69)+ω2*Α2*SIN(ω2*G69) -> 0.1965219281 | K69: =ω1*Β1*SIN(ω1*G69)+ω2*Β2*SIN(ω2*G69) -> -0.2057288398
F70: 65 | G70: 28.49155269 | H70: 0.08879803955 | I70: 0.8958519523 | J70: 0.195254177 | K70: -0.1171972831
F71: 66 | G71: 28.92988427 | H71: 0.005310490207 | I71: 0.9264853811 | J71: 0.184124509 | K71: -0.02179370219
F72: 67 | G72: 29.36821585 | H72: -0.07135517328 | I72: 0.9146053964 | J72: 0.1643717061 | K72: 0.07601509109
F73: 68 | G73: 29.80654743 | H73: -0.1377682627 | I73: 0.8601729642 | J73: 0.1376489583 | K73: 0.1715860486
F74: 69 | G74: 30.24487901 | H74: -0.1912935199 | I74: 0.7651816957 | J74: 0.1059125217 | K74: 0.2603257509
F75: 70 | G75: 30.68321059 | H75: -0.230196951 | I75: 0.6335863768 | J75: 0.0712968354 | K75: 0.3379163049
F76: 71 | G76: 31.12154217 | H76: -0.2536953086 | I76: 0.4711345479 | J76: 0.03598355509 | K76: 0.4005299446
F77: 72 | G77: 31.55987375 | H77: -0.2619482337 | I77: 0.2851084896 | J77: 0.002072156646 | K77: 0.4450214806
F78: 73 | G78: 31.99820533 | H78: -0.2559953848 | I78: 0.08398952632 | J78: -0.02854048058 | K78: 0.4690887718
F79: 74 | G79: 32.43653691 | H79: -0.237644004 | I79: -0.1229394531 | J79: -0.05426475549 | K79: 0.4713929302
F80: 75 | G80: 32.87486849 | H80: -0.2093151134 | I80: -0.3260341463 | J80: -0.07390156738 | K80: 0.4516319395
F81: 76 | G81: 33.31320007 | H81: -0.1738587649 | I81: -0.5157502686 | J81: -0.08669969443 | K81: 0.4105636723
F82: 77 | G82: 33.75153165 | H82: -0.1343503471 | I82: -0.6831036622 | J82: -0.0923845179 | K82: 0.3499768093
F83: 78 | G83: 34.18986323 | H83: -0.09388081337 | I83: -0.8201063968 | J83: -0.09115699414 | K83: 0.2726107787
F84: 79 | G84: 34.62819481 | H84: -0.05535379396 | I84: -0.9201572328 | J84: -0.08366353246 | K84: 0.1820284008
F85: 80 | G85: 35.06652639 | H85: -0.02130188635 | I85: -0.9783669632 | J85: -0.07093913354 | K85: 0.08244731582
F86: 81 | G86: 35.50485797 | H86: 0.006266955269 | I86: -0.9918022919 | J86: -0.05432768577 | K86: -0.02146162768
F87: 82 | G87: 35.94318955 | H87: 0.02598401698 | I87: -0.9596358756 | J87: -0.03538461771 | K87: -0.1247991561
F88: 83 | G88: 36.38152113 | H88: 0.03718900049 | I88: -0.8831947616 | J88: -0.01576809252 | K88: -0.2226744591
F89: 84 | G89: 36.81985271 | H89: 0.03995023031 | I89: -0.7659044723 | J89: 0.002874451886 | K89: -0.3104424732
F90: 85 | G90: 37.25818429 | H90: 0.03503539098 | I90: -0.6131311481 | J90: 0.01901739575 | K90: -0.383929795
F91: 86 | G91: 37.69651587 | H91: 0.02383534231 | I91: -0.4319292231 | J91: 0.03135883824 | K91: -0.4396380036
F92: 87 | G92: 38.13484745 | H92: 0.008246436192 | I92: -0.2307068045 | J92: 0.03890707488 | K92: -0.4749142731
F93: 88 | G93: 38.57317903 | H93: -0.009480707748 | I93: -0.01882502169 | J93: 0.04104637869 | K93: -0.4880807813
F94: 89 | G94: 39.01151061 | H94: -0.02691596646 | I94: 0.1938490991 | J94: 0.03757807664 | K94: -0.478516469
F95: 90 | G95: 39.44984219 | H95: -0.04163658059 | I95: 0.3974143653 | J95: 0.0287344113 | K95: -0.4466870804
F96: 91 | G96: 39.88817377 | H96: -0.05141394396 | I96: 0.5824086613 | J96: 0.01516432181 | K96: -0.3941220002
F97: 92 | G97: 40.32650535 | H97: -0.05438812693 | I97: 0.7402605447 | J97: -0.00210802593 | K97: -0.3233390593
F98: 93 | G98: 40.76483693 | H98: -0.04921867356 | I98: 0.863697121 | J98: -0.02174948187 | K98: -0.2377210786
F99: 94 | G99: 41.20316851 | H99: -0.03520163579 | I99: 0.9470883141 | J99: -0.04220494291 | K99: -0.1413503272
F100: 95 | G100: 41.64150009 | H100: -0.01234484362 | I100: 0.9867108273 | J100: -0.06179991281 | K100: -0.03880916223
F101: 96 | G101: 42.07983167 | H101: 0.01860405894 | I101: 0.980919096 | J101: -0.07885235968 | K101: 0.06504321173
F102: 97 | G102: 42.51816325 | H102: 0.0561794037 | I102: 0.9302151675 | J102: -0.09178703107 | K102: 0.1653067561
F103: 98 | G103: 42.95649483 | H103: 0.09826864601 | I103: 0.8372144642 | J103: -0.09924517595 | K103: 0.2572776729
F104: 99 | G104: 43.39482641 | H104: 0.1422293413 | I104: 0.7065095442 | J104: -0.1001828261 | K104: 0.3366748151
F105: 100 | G105: 43.83315799 | H105: 0.1850455386 | I105: 0.5444390108 | J105: -0.09395139612 | K105: 0.3998442833
F106: 101 | G106: 44.27148957 | H106: 0.2235146462 | I106: 0.3587733765 | J106: -0.08035533937 | K106: 0.4439321974
F107: 102 | G107: 44.70982115 | H107: 0.2544537889 | I107: 0.158333735 | J107: -0.05968289471 | K107: 0.4670172684
F108: 103 | G108: 45.14815273 | H108: 0.2749132733 | I108: -0.04743766981 | J108: -0.0327075001 | K108: 0.4681968455
F109: 104 | G109: 45.58648431 | H109: 0.2823840792 | I109: -0.2489336261 | J109: -0.0006591522355 | K109: 0.4476224767
F110: 105 | G110: 46.02481589 | H110: 0.2749863691 | I110: -0.4368423533 | J110: 0.03483324354 | K110: 0.4064835679
F111: 106 | G111: 46.46314747 | H111: 0.2516268458 | I111: -0.6025895323 | J111: 0.07182576059 | K111: 0.3469403299
F112: 107 | G112: 46.90147905 | H112: 0.2121143598 | I112: -0.738740467 | J112: 0.1081652112 | K112: 0.2720097336
F113: 108 | G113: 47.33981063 | H113: 0.1572253895 | I113: -0.8393430204 | J113: 0.1416110523 | K113: 0.1854105181
F114: 109 | G114: 47.77814221 | H114: 0.08871377047 | I114: -0.9001950777 | J114: 0.1699666554 | K114: 0.09137529984
F115: 110 | G115: 48.21647379 | H115: 0.009262188443 | I115: -0.9190241759 | J115: 0.191212479 | K115: -0.005560586331
F116: 111 | G116: 48.65480537 | H116: -0.07762370695 | I116: -0.8955714193 | J116: 0.203633415 | K116: -0.1007827987
F117: 112 | G117: 49.09313695 | H117: -0.1677743438 | I117: -0.8315766356 | J117: 0.205932756 | K117: -0.1898230082
F118: 113 | G118: 49.53146853 | H118: -0.2565610073 | I118: -0.7306666655 | J118: 0.197325831 | K118: -0.2685740198
F119: 114 | G119: 49.96980011 | H119: -0.3391360984 | I119: -0.5981534793 | J119: 0.1776073691 | K119: -0.3334844025
F120: 115 | G120: 50.40813169 | H120: -0.410696298 | I120: -0.4407532258 | J120: 0.1471880126 | K120: -0.3817231734
F121: 116 | G121: 50.84646327 | H121: -0.4667544062 | I121: -0.2662411242 | J121: 0.107097046 | K121: -0.4113066949
F122: 117 | G122: 51.28479485 | H122: -0.5034047388 | I122: -0.08306012273 | J122: 0.05895024921 | K122: -0.4211819337
F123: 118 | G123: 51.72312643 | H123: -0.5175669068 | I123: 0.1000966759 | J123: 0.004883714315 | K123: -0.4112625047
F124: 119 | G124: 52.16145801 | H124: -0.5071935981 | I124: 0.2747087859 | J124: -0.05254360694 | K124: -0.382416348
F125: 120 | G125: 52.59978959 | H125: -0.4714295922 | I125: 0.4328353017 | J125: -0.1104740565 | K125: -0.3364063483
F126: 121 | G126: 53.03812117 | H126: -0.4107116022 | I126: 0.5674861497 | J126: -0.165895968 | K126: -0.2757875705
F127: 122 | G127: 53.47645275 | H127: -0.3268015255 | I127: 0.6729398157 | J127: -0.2158014805 | K127: -0.2037669368
F128: 123 | G128: 53.91478433 | H128: -0.2227491541 | I128: 0.744992699 | J128: -0.2573491478 | K128: -0.1240329912
F129: 124 | G129: 54.35311591 | H129: -0.1027841549 | I129: 0.7811289273 | J129: -0.2880225786 | K129: -0.04056481306
F130: 125 | G130: 54.79144749 | H130: 0.02785901417 | I130: 0.780603654 | J130: -0.3057763612 | K130: 0.04256993492
F131: 126 | G131: 55.22977907 | H131: 0.1631758442 | I131: 0.7444373496 | J131: -0.3091610325 | K131: 0.1214174359
F132: 127 | G132: 55.66811065 | H132: 0.2966753482 | I132: 0.6753231373 | J132: -0.2974198061 | K132: 0.1923303736
F133: 128 | G133: =8*3.1426/(ω2-ω1)*F133/700 -> 56.10644223 | H133: =Α1*COS(ω1*G133)+Α2*COS(ω2*G133) -> 0.4216987341 | I133: =Β1*COS(ω1*G133)+Β2*COS(ω2*G133) -> 0.5774535937 | J133: =ω1*Α1*SIN(ω1*G133)+ω2*Α2*SIN(ω2*G133) -> -0.2705511478 | K133: =ω1*Β1*SIN(ω1*G133)+ω2*Β2*SIN(ω2*G133) -> 0.252141227
F134: 129 | G134: 56.54477381 | H134: 0.5317572207 | I134: 0.4562773986 | J134: -0.2293330029 | K134: 0.2983077679
F135: 130 | G135: 56.98310539 | H135: 0.6208716247 | I135: 0.3181995884 | J135: -0.1753064534 | K135: 0.3290238934
F136: 131 | G136: 57.42143697 | H136: 0.6838958348 | I136: 0.1702417695 | J136: -0.1107187093 | K136: 0.3432908284
F137: 132 | G137: 57.85976855 | H137: 0.7168067255 | I137: 0.01968036617 | J137: -0.03842751016 | K137: 0.3409458613
F138: 133 | G138: 58.29810013 | H138: 0.7169444342 | I138: -0.1263182714 | J138: 0.0382288911 | K138: 0.322648023
F139: 134 | G139: 58.73643171 | H139: 0.6831891838 | I139: -0.2610473062 | J139: 0.1155900819 | K139: 0.2898223588
F140: 135 | G140: 59.17476329 | H140: 0.6160638639 | I140: -0.3785760025 | J140: 0.1898524825 | K140: 0.2445665584
F141: 136 | G141: 59.61309487 | H141: 0.5177552453 | I141: -0.4740181398 | J141: 0.2572600443 | K141: 0.1895256013
F142: 137 | G142: 60.05142645 | H142: 0.3920508041 | I142: -0.5437397615 | J142: 0.3142969386 | K142: 0.1277416254
F143: 138 | G143: 60.48975803 | H143: 0.2441924763 | I143: -0.5854971998 | J143: 0.3578722409 | K143: 0.06248738749
F144: 139 | G144: 60.92808961 | H144: 0.08065300396 | I144: -0.5985001505 | J144: 0.3854868584 | K144: -0.002907629223
F145: 140 | G145: 61.36642118 | H145: -0.09115533373 | I145: -0.5833986085 | J145: 0.3953737064 | K145: -0.06522919892
F146: 141 | G146: 61.80475276 | H146: -0.2632261269 | I146: -0.5421964832 | J146: 0.3866033847 | K146: -0.1215394607
F147: 142 | G147: 62.24308434 | H147: -0.4273418562 | I147: -0.4780984981 | J147: 0.3591492706 | K147: -0.1693189439
F148: 143 | G148: 62.68141592 | H148: -0.5754757678 | I148: -0.3953003254 | J148: 0.3139079565 | K148: -0.2065824918
F149: 144 | G149: 63.1197475 | H149: -0.7001925441 | I149: -0.298734661 | J149: 0.2526732088 | K149: -0.2319636027
F150: 145 | G150: 63.55807908 | H150: -0.7950274307 | I150: -0.1937879587 | J150: 0.1780640005 | K150: -0.2447635143
F151: 146 | G151: 63.99641066 | H151: -0.8548242448 | I151: -0.08600372445 | J151: 0.09340955011 | K151: -0.2449633242
F152: 147 | G152: 64.43474224 | H152: -0.8760144788 | I152: 0.01921142299 | J152: 0.002596552905 | K152: -0.2331994686
F153: 148 | G153: 64.87307382 | H153: -0.8568224365 | I153: 0.1168632955 | J153: -0.0901141905 | K153: -0.210704848
F154: 149 | G154: 65.3114054 | H154: -0.7973848799 | I154: 0.2026130635 | J154: -0.1802928774 | K154: -0.1792197055
F155: 150 | G155: 65.74973698 | H155: -0.6997778375 | I155: 0.2729754972 | J155: -0.2635574378 | K155: -0.1408779124
F156: 151 | G156: 66.18806856 | H156: -0.5679478312 | I156: 0.3254632123 | J156: -0.3357910789 | K156: -0.09807553872
F157: 152 | G157: 66.62640014 | H157: -0.4075495805 | I157: 0.3586708188 | J157: -0.393349645 | K157: -0.05332940458
F158: 153 | G158: 67.06473172 | H158: -0.2256969971 | I158: 0.3722963456 | J158: -0.4332481893 | K158: -0.009133688965
F159: 154 | G159: 67.5030633 | H159: -0.03063874199 | I159: 0.3671008563 | J159: -0.4533170961 | K159: 0.03217739344
F160: 155 | G160: 67.94139488 | H160: 0.1686264433 | I160: 0.3448105853 | J160: -0.4523195338 | K160: 0.06855335039
F161: 156 | G161: 68.37972646 | H161: 0.3627762184 | I161: 0.3079690223 | J161: -0.4300239014 | K161: 0.09833102474
F162: 157 | G162: 68.81805804 | H162: 0.5426122214 | I162: 0.2597489924 | J162: -0.3872271497 | K162: 0.1203127504
F163: 158 | G163: 69.25638962 | H163: 0.6995067512 | I163: 0.2037367755 | J163: -0.3257273113 | K163: 0.1338152838
F164: 159 | G164: 69.6947212 | H164: 0.825826393 | I164: 0.1437015886 | J164: -0.2482461264 | K164: 0.138687473
F165: 160 | G165: 70.13305278 | H165: 0.91531137 | I165: 0.08336424744 | J165: -0.1583051853 | K165: 0.1352964426
F166: 161 | G166: 70.57138436 | H166: 0.9633914345 | I166: 0.02617852786 | J166: -0.06006137949 | K166: 0.124483875
F167: 162 | G167: 71.00971594 | H167: 0.9674221221 | I167: -0.0248623224 | J167: 0.04189044469 | K167: 0.1074956484
F168: 163 | G168: 71.44804752 | H168: 0.9268290406 | I168: -0.06738323296 | J168: 0.1427380316 | K168: 0.08588957122
F169: 164 | G169: 71.8863791 | H169: 0.8431523657 | I169: -0.09974077953 | J169: 0.2376846258 | K169: 0.06142713042
F170: 165 | G170: 72.32471068 | H170: 0.7199886335 | I170: -0.121086921 | J170: 0.3221827235 | K170: 0.03595600347
F171: 166 | G171: 72.76304226 | H171: 0.5628320173 | I171: -0.1313805217 | J171: 0.3921570325 | K171: 0.01129051228
F172: 167 | G172: 73.20137384 | H172: 0.3788222914 | I172: -0.1313473394 | J172: 0.4442054893 | K172: -0.01090278948
F173: 168 | G173: 73.63970542 | H173: 0.1764113632 | I173: -0.1223922403 | J173: 0.4757682272 | K173: -0.02920760771
F174: 169 | G174: 74.078037 | H174: -0.03503564171 | I174: -0.106470214 | J174: 0.4852559539 | K174: -0.0425424816
F175: 170 | G175: 74.51636858 | H175: -0.2456854332 | I175: -0.08592515799 | J175: 0.4721311958 | K175: -0.05022257634
F176: 171 | G176: 74.95470016 | H176: -0.4457060805 | I176: -0.06330722757 | J176: 0.4369382073 | K176: -0.0519952369
F177: 172 | G177: 75.39303174 | H177: -0.6257380454 | I177: -0.04118072354 | J177: 0.3812799 | K177: -0.04804744189
F178: 173 | G178: 75.83136332 | H178: -0.7773436275 | I178: -0.02193493244 | J178: 0.3077427941 | K178: -0.038984991
F179: 174 | G179: 76.2696949 | H179: -0.8934127333 | I179: -0.007610035769 | J179: 0.2197735981 | K179: -0.02578495434
F180: 175 | G180: 76.70802648 | H180: -0.9685050053 | I180: 0.0002508213304 | J180: 0.1215134486 | K180: -0.009724508983
F181: 176 | G181: 77.14635806 | H181: -0.9991114695 | I181: 0.000713898116 | J181: 0.01759796515 | K181: 0.007709304552
F182: 177 | G182: 77.58468964 | H182: -0.9838228246 | I182: -0.006475493575 | J182: -0.08706700656 | K182: 0.02492323616
F183: 178 | G183: 78.02302122 | H183: -0.923396115 | I183: -0.0208705434 | J183: -0.1875428734 | K183: 0.04032841907
F184: 179 | G184: 78.4613528 | H184: -0.8207165514 | I184: -0.0413492383 | J184: -0.279097244 | K184: 0.05245101122
F185: 180 | G185: 78.89968438 | H185: -0.6806564348 | I185: -0.06618790099 | J185: -0.3574325303 | K185: 0.06003598089
F186: 181 | G186: 79.33801596 | H186: -0.5098382238 | I186: -0.09317751771 | J186: -0.418892909 | K186: 0.06213752629
F187: 182 | G187: 79.77634754 | H187: -0.3163135151 | I187: -0.1197757051 | J187: -0.4606394483 | K187: 0.0581903976
F188: 183 | G188: 80.21467912 | H188: -0.1091738404 | I188: -0.1432848883 | J188: -0.4807848124 | K188: 0.04805751022
F189: 184 | G189: 80.6530107 | H189: 0.1018874849 | I189: -0.1610455379 | J189: -0.4784809932 | K189: 0.03205063475
F190: 185 | G190: 81.09134228 | H190: 0.307040863 | I190: -0.1706322491 | J190: -0.4539558819 | K190: 0.01092254458
F191: 186 | G191: 81.52967386 | H191: 0.4967903892 | I191: -0.1700401066 | J191: -0.408497061 | K191: -0.01416929742
F192: 187 | G192: 81.96800544 | H192: 0.6624252936 | I192: -0.1578491917 | J192: -0.3443838375 | K192: -0.04172572136
F193: 188 | G193: 82.40633702 | H193: 0.7964308597 | I193: -0.1333562316 | J193: -0.2647711201 | K193: -0.06999209099
F194: 189 | G194: 82.8446686 | H194: 0.8928389427 | I194: -0.09666421216 | J194: -0.1735311309 | K194: -0.09706295569
F195: 190 | G195: 83.28300018 | H195: 0.9475013036 | I195: -0.04872316343 | J195: -0.07506102063 | K195: -0.1209991001
F196: 191 | G196: 83.72133176 | H196: 0.9582728945 | I196: 0.008681839522 | J196: 0.02593388375 | K196: -0.1399501479
F197: 192 | G197: =8*3.1426/(ω2-ω1)*F197/700 -> 84.15966334 | H197: =Α1*COS(ω1*G197)+Α2*COS(ω2*G197) -> 0.9250967676 | I197: =Β1*COS(ω1*G197)+Β2*COS(ω2*G197) -> 0.0729963067 | J197: =ω1*Α1*SIN(ω1*G197)+ω2*Α2*SIN(ω2*G197) -> 0.124670309 | K197: =ω1*Β1*SIN(ω1*G197)+ω2*Β2*SIN(ω2*G197) -> -0.1522754352
F198: 193 | G198: 84.59799492 | H198: 0.8499872098 | I198: 0.1410132278 | J198: 0.2165192459 | K198: -0.156655847
F199: 194 | G199: 85.0363265 | H199: 0.7369127666 | I199: 0.2090357337 | J199: 0.2972286223 | K199: -0.152189707
F200: 195 | G200: 85.47465808 | H200: 0.5915857716 | I200: 0.2730771612 | J200: 0.3631254788 | K200: -0.1384666207
F201: 196 | G201: 85.91298966 | H201: 0.4211695717 | I201: 0.3290877273 | J201: 0.4112878001 | K201: -0.1156143365
F202: 197 | G202: 86.35132124 | H202: 0.2339186261 | I202: 0.3731951685 | J202: 0.4396777497 | K202: -0.08431516295
F203: 198 | G203: 86.78965282 | H203: 0.0387698431 | I203: 0.4019455483 | J203: 0.4472300656 | K203: -0.04579017129
... 502 more rows

Sheet Προσομοίωση
D2: Ctrl-g για να "τρέξει", πατήστε μία φορά
E4: 300 | G4: t | H4: =4*3.1416928/(ω2-ω1)*E4/190 -> 242.1659449
G6: x | H6: y
G7: =Α1*COS(ω1*t)+Α2*COS(ω2*t) -> -0.3515654457 | H7: =Β1*COS(ω1*t)+Β2*COS(ω2*t) -> 0.4365065973
G9: x1 | H9: y1
G10: =Α1*COS(ω1*t) -> 0.04247057579 | H10: =Β1*COS(ω1*t) -> 0.04247057579
G12: x2 | H12: y2
G13: =Α2*COS(ω2*t) -> -0.3940360215 | H13: =Β2*COS(ω2*t) -> 0.3940360215
G15: Ταχύτητα Vx | H15: Ταχύτητα Vy
G16: =ω1*Α1*SIN(ω1*t)+ω2*Α2*SIN(ω2*t) -> 0.3856666344 | H16: =ω1*Β1*SIN(ω1*t)+ω2*Β2*SIN(ω2*t) -> 0.0599307177
E20: E | F20: Es | G20: Ex | H20: Ey
E21: =F21+G21+H21 -> 0.6 | F21: =0.5*s*(G7-H7)^2 -> 0.0621057545 | G21: =0.5*mx*Vx*Vx+0.5*sx*G7*G7 -> 0.4336460134 | H21: =0.5*my*Vy*Vy+0.5*sy*H7*H7 -> 0.1042482321

Sheet Περιγραφή λύσης
